fUST/lending_fUST_20260225
["ID","MTS","AMOUNT","RATE_DAILY","PERIOD"]
[406617575,1771977939337,-197.210067,0.00013699,2]
[406617576,1771977939357,-151.0,0.00013699,2]
[406617577,1771977939378,-151.0,0.00013699,2]
[406617578,1771977939399,-157.752822,0.00013699,2]
[406617579,1771977939421,-269.91586483,0.00013699,2]
[406617580,1771977944554,151.0,0.0004195,120]
[406617581,1771977944838,151.0,0.0004195,120]
[406617582,1771977945127,151.0,0.0004195,120]
[406617583,1771977945562,151.0,0.0004195,120]
[406617584,1771977945753,151.0,0.0004195,120]
[406617585,1771977946054,151.0,0.0004195,120]
[406617586,1771977946300,151.0,0.0004195,120]
[406617587,1771977946597,151.0,0.0004195,120]
[406617588,1771977946900,151.0,0.0004195,120]
[406617589,1771977947478,151.0,0.0004195,120]
[406617590,1771977947794,151.0,0.0004195,120]
[406617591,1771977948066,151.0,0.0004195,120]
[406617592,1771977948471,171.980712,0.0004195,120]
[406617593,1771977955102,-841.40106928,0.0001232,2]
[406617594,1771977955124,-841.40106928,0.0001232,2]
[406617595,1771977955145,-841.40106928,0.0001232,2]
[406617596,1771977955169,-841.40106928,0.0001232,2]
[406617597,1771977955190,-561.37206755,0.000129,2]
[406617598,1771977955209,-230.08413517,0.00013699,2]
[406617599,1771977955228,-500.0,0.00013699,2]
[406617600,1771977955248,-500.0,0.00013699,2]
[406617601,1771977955268,-500.0,0.00013699,2]
[406617602,1771977955287,-500.0,0.00013699,2]
[406617603,1771977955305,-899.85900595,0.00013821,2]
[406617604,1771977955326,-720.0,0.00013825,2]
[406617605,1771977955347,-7218.5408064,0.00014274,2]
[406617606,1771977955366,-2661.15216881,0.00014274,2]
[406617607,1771977972309,265.281969,0.0004195,120]
[406617608,1771977972590,265.281969,0.0004195,120]
[406617609,1771977972973,265.281969,0.0004195,120]
[406617610,1771977973194,265.281969,0.0004195,120]
[406617611,1771977973481,265.281969,0.0004195,120]
[406617612,1771977973808,265.281969,0.0004195,120]
[406617613,1771977974092,265.281969,0.0004195,120]
[406617614,1771977974374,265.281969,0.0004195,120]
[406617615,1771977974747,265.281969,0.0004195,120]
[406617616,1771977975042,265.281969,0.0004195,120]
[406617617,1771977975359,265.281969,0.0004195,120]
[406617618,1771977975660,265.281969,0.0004195,120]
[406617619,1771977975938,265.281969,0.0004195,120]
[406617620,1771977976204,265.281969,0.0004195,120]
[406617621,1771977976487,265.281969,0.0004195,120]
[406617622,1771977976817,265.281969,0.0004195,120]
[406617623,1771977977125,265.281969,0.0004195,120]
[406617624,1771977977340,265.281969,0.0004195,120]
[406617625,1771977977637,265.281969,0.0004195,120]
[406617626,1771977977935,265.281973,0.0004195,120]
[406617627,1771977985944,151.0,0.0004195,120]
[406617628,1771977986262,151.0,0.0004195,120]
[406617629,1771977986651,151.0,0.0004195,120]
[406617630,1771977986898,151.0,0.0004195,120]
[406617631,1771977987215,151.0,0.0004195,120]
[406617632,1771977987503,151.0,0.0004195,120]
[406617633,1771977987824,175.560486,0.0004195,120]
[406617634,1771977988548,152.384216,0.0004195,120]
[406617635,1771978000131,151.0,0.0004195,120]
[406617636,1771978000250,151.0,0.0004195,60]
[406617637,1771978000414,151.0,0.0004195,120]
[406617638,1771978000679,151.0,0.0004195,60]
[406617639,1771978000917,151.0,0.0004195,120]
[406617640,1771978001073,151.0,0.0004195,120]
[406617641,1771978001242,151.0,0.0004195,60]
[406617642,1771978001359,151.0,0.0004195,120]
[406617643,1771978001463,151.0,0.0004195,120]
[406617644,1771978001571,151.0,0.0004195,60]
[406617645,1771978001772,151.0,0.0004195,120]
[406617646,1771978001889,151.0,0.0004195,60]
[406617647,1771978001997,151.0,0.0004195,120]
[406617648,1771978002104,151.0,0.0004195,120]
[406617649,1771978002233,151.0,0.0004195,120]
[406617650,1771978002647,151.0,0.0004195,60]
[406617651,1771978002753,151.0,0.0004195,120]
[406617652,1771978002866,151.0,0.0004195,120]
[406617653,1771978002970,151.0,0.0004195,60]
[406617654,1771978003111,151.0,0.0004195,120]
[406617655,1771978003289,151.0,0.0004195,120]
[406617656,1771978003397,270.000901,0.0004195,120]
[406617657,1771978003503,151.0,0.0004195,60]
[406617658,1771978003651,151.0,0.0004195,120]
[406617659,1771978003870,196.184266,0.0004195,60]
[406617660,1771978004099,151.0,0.0004195,120]
[406617661,1771978004219,151.0,0.0004195,120]
[406617662,1771978004339,151.0,0.0004195,120]
[406617663,1771978004550,151.0,0.0004195,120]
[406617664,1771978004678,151.0,0.0004195,120]
[406617665,1771978005068,151.0,0.0004195,120]
[406617666,1771978005319,282.931344,0.0004195,120]
[406617667,1771978030186,151.0,0.0004195,120]
[406617668,1771978030465,151.0,0.0004195,120]
[406617669,1771978030745,151.0,0.0004195,120]
[406617670,1771978031032,233.488144,0.0004195,120]
[406617671,1771978032088,-300.0,0.00012318,2]
[406617672,1771978032111,-500.0,0.00012319,2]
[406617673,1771978032132,-175.27778174,0.00012319,2]
[406617674,1771978032155,-199.05103232,0.00012319,2]
[406617675,1771978032177,-500.0,0.00012319,2]
[406617676,1771978032201,-809.57449067,0.00012319,2]
[406617677,1771978032226,-248.22814253,0.00012319,2]
[406617678,1771978032250,-809.57449067,0.00012319,2]
[406617679,1771978032272,-809.57449067,0.00012319,2]
[406617680,1771978032294,-809.57449067,0.00012319,2]
[406617681,1771978032317,-809.57449067,0.00012319,2]
[406617682,1771978032340,-809.57449067,0.00012319,2]
[406617683,1771978032362,-809.57449067,0.00012319,2]
[406617684,1771978032384,-809.57449067,0.00012319,2]
[406617685,1771978032406,-809.57449067,0.00012319,2]
[406617686,1771978032604,-809.57449067,0.00012319,2]
[406617687,1771978032628,-809.57449067,0.00012319,2]
[406617688,1771978032651,-809.57449067,0.00012319,2]
[406617689,1771978032674,-809.57449067,0.00012319,2]
[406617690,1771978032697,-809.57449067,0.00012319,2]
[406617691,1771978032720,-809.57449067,0.00012319,2]
[406617692,1771978032743,-809.57449067,0.00012319,2]
[406617693,1771978032766,-809.57449067,0.00012319,2]
[406617694,1771978032789,-809.57449067,0.00012319,2]
[406617695,1771978032811,-809.57449067,0.00012319,2]
[406617696,1771978032834,-809.57449067,0.00012319,2]
[406617697,1771978032856,-809.57449067,0.00012319,2]
[406617698,1771978032880,-809.57449067,0.00012319,2]
[406617699,1771978032901,-809.57449067,0.00012319,2]
[406617700,1771978032927,-809.57449067,0.00012319,2]
[406617701,1771978032950,-809.57449067,0.00012319,2]
[406617702,1771978032972,-809.57449067,0.00012319,2]
[406617703,1771978032995,-809.57449067,0.00012319,2]
[406617704,1771978033017,-809.57449067,0.00012319,2]
[406617705,1771978033040,-809.57449067,0.00012319,2]
[406617706,1771978033063,-809.57449067,0.00012319,2]
[406617707,1771978033086,-809.57449067,0.00012319,2]
[406617708,1771978033108,-809.57449067,0.00012319,2]
[406617709,1771978033131,-796.08158249,0.00012319,2]
[406617710,1771978033153,-796.08158249,0.00012319,2]
[406617711,1771978033178,-796.08158249,0.00012319,2]
[406617712,1771978033204,-796.08158249,0.00012319,2]
[406617713,1771978033228,-796.08158249,0.00012319,2]
[406617714,1771978033250,-796.08158249,0.00012319,2]
[406617715,1771978033273,-796.08158249,0.00012319,2]
[406617716,1771978033294,-796.08158249,0.00012319,2]
[406617717,1771978033321,-796.08158249,0.00012319,2]
[406617718,1771978033343,-796.08158249,0.00012319,2]
[406617719,1771978033365,-796.08158249,0.00012319,2]
[406617720,1771978033386,-796.08158249,0.00012319,2]
[406617721,1771978033412,-796.08158249,0.00012319,2]
[406617722,1771978033433,-796.08158249,0.00012319,2]
[406617723,1771978033456,-796.08158249,0.00012319,2]
[406617724,1771978033478,-796.08158249,0.00012319,2]
[406617725,1771978033500,-796.08158249,0.00012319,2]
[406617726,1771978033522,-796.08158249,0.00012319,2]
[406617727,1771978033545,-796.08158249,0.00012319,2]
[406617728,1771978033566,-796.08158249,0.00012319,2]
[406617729,1771978033589,-796.08158249,0.00012319,2]
[406617730,1771978033613,-796.08158249,0.00012319,2]
[406617731,1771978033634,-420.0,0.00013518,2]
[406617732,1771978033655,-181.5679265,0.0001372,2]
[406617733,1771978033675,-271.71062939,0.00014274,2]
[406617734,1771978033695,-500.0,0.00014478,2]
[406617735,1771978033716,-800.119907,0.00014489,2]
[406617736,1771978033737,-151.0,0.000145,2]
[406617737,1771978033757,-444.14,0.00014747,2]
[406617738,1771978033777,-342.36553434,0.0001479,2]
[406617739,1771978033799,-794.88,0.0001479,2]
[406617740,1771978033820,-500.0,0.00014791,2]
[406617741,1771978033840,-500.0,0.00014791,2]
[406617742,1771978033860,-500.0,0.00014791,2]
[406617743,1771978033881,-500.0,0.00014791,2]
[406617744,1771978033900,-211.04096694,0.00014791,2]
[406617745,1771978033922,-500.0,0.00014791,2]
[406617746,1771978033943,-500.0,0.00014791,2]
[406617747,1771978033963,-519.0,0.00014791,2]
[406617748,1771978033984,-500.0,0.00014794,2]
[406617749,1771978034005,-500.0,0.00014794,2]
[406617750,1771978034026,-587.0,0.00014835,2]
[406617751,1771978034046,-500.0,0.00014846,2]
[406617752,1771978034067,-500.0,0.00014846,2]
[406617753,1771978034088,-500.0,0.00014846,2]
[406617754,1771978034108,-500.0,0.00014846,2]
[406617755,1771978034134,-500.0,0.00014846,2]
[406617756,1771978034161,-500.0,0.00014846,2]
[406617757,1771978034185,-519.0,0.00014846,2]
[406617758,1771978034208,-369.99183371,0.00014901,2]
[406617759,1771978034230,-500.0,0.00014901,2]
[406617760,1771978034251,-500.0,0.00014901,2]
[406617761,1771978034273,-500.0,0.00014901,2]
[406617762,1771978034297,-500.0,0.00014901,2]
[406617763,1771978034318,-500.0,0.00014901,2]
[406617764,1771978034340,-519.0,0.00014901,2]
[406617765,1771978034363,-2351.0,0.00014906,2]
[406617766,1771978034386,-794.88,0.00014955,2]
[406617767,1771978034407,-500.0,0.00014955,2]
[406617768,1771978034428,-500.0,0.00014955,2]
[406617769,1771978034450,-500.0,0.00014955,2]
[406617770,1771978034470,-350.14121884,0.00014955,2]
[406617771,1771978034491,-502.96493209,0.00014955,2]
[406617772,1771978034512,-519.0,0.00014955,2]
[406617773,1771978034532,-500.0,0.0001501,2]
[406617774,1771978034553,-500.0,0.0001501,2]
[406617775,1771978034575,-519.0,0.0001501,2]
[406617776,1771978034595,-500.0,0.00015065,2]
[406617777,1771978034616,-500.0,0.00015065,2]
[406617778,1771978034637,-519.0,0.00015065,2]
[406617779,1771978034658,-500.0,0.00015065,2]
[406617780,1771978034679,-500.0,0.00015065,2]
[406617781,1771978034707,-224.85705696,0.00015067,2]
[406617782,1771978034728,-899.42822784,0.00015067,2]
[406617783,1771978034750,-2023.71351265,0.00015067,2]
[406617784,1771978034771,-3597.71291138,0.00015067,2]
[406617785,1771978034792,-386.42945625,0.00015067,2]
[406617786,1771978034815,-218.243513,0.00015068,2]
[406617787,1771978034837,-800.119907,0.00015099,2]
[406617788,1771978034860,-794.88,0.00015119,2]
[406617789,1771978034886,-500.0,0.0001512,2]
[406617790,1771978034914,-500.0,0.0001512,2]
[406617791,1771978034944,-519.0,0.0001512,2]
[406617792,1771978034968,-500.0,0.00015123,2]
[406617793,1771978034998,-600.0,0.00015142,2]
[406617794,1771978035020,-546.88206079,0.00015175,2]
[406617795,1771978035043,-500.0,0.00015175,2]
[406617796,1771978035247,-519.0,0.00015175,2]
[406617797,1771978035269,-500.0,0.00015229,2]
[406617798,1771978035291,-519.0,0.00015229,2]
[406617799,1771978035311,-500.0,0.00015284,2]
[406617800,1771978035333,-519.0,0.00015284,2]
[406617801,1771978035353,-500.0,0.00015339,2]
[406617802,1771978035374,-519.0,0.00015339,2]
[406617803,1771978035402,-206.32952929,0.00015394,2]
[406617804,1771978035425,-519.0,0.00015394,2]
[406617805,1771978035446,-519.0,0.00015449,2]
[406617806,1771978035467,-519.0,0.00015503,2]
[406617807,1771978035489,-519.0,0.00015558,2]
[406617808,1771978035510,-519.0,0.00015613,2]
[406617809,1771978035531,-1513.616818,0.00015622,2]
[406617810,1771978035551,-519.0,0.00015668,2]
[406617811,1771978035573,-794.88,0.00015699,2]
[406617812,1771978035599,-544.11006338,0.000157,2]
[406617813,1771978035621,-608.58671855,0.000157,2]
[406617814,1771978035643,-225.9,0.000157,2]
[406617815,1771978035667,-500.0,0.000157,2]
[406617816,1771978035689,-204.93,0.000157,2]
[406617817,1771978035711,-500.0,0.00015708,2]
[406617818,1771978035732,-800.119907,0.00015709,2]
[406617819,1771978035758,-519.0,0.00015723,2]
[406617820,1771978035779,-519.0,0.00015777,2]
[406617821,1771978035800,-519.0,0.00015832,2]
[406617822,1771978035822,-519.0,0.00015887,2]
[406617823,1771978035844,-161.8651,0.00015922,120]
[406617824,1771978035868,-519.0,0.00015942,2]
[406617825,1771978035890,-519.0,0.00015996,2]
[406617826,1771978035910,-151.0,0.00016,2]
[406617827,1771978035935,-531.18450798,0.00016051,2]
[406617828,1771978035955,-1610.6741661,0.00016099,2]
[406617829,1771978035976,-1179.0365,0.00016117,120]
[406617830,1771978036000,-794.88,0.00016218,2]
[406617831,1771978036021,-544.11006338,0.00016219,5]
[406617832,1771978036043,-608.58671855,0.00016219,5]
[406617833,1771978036064,-625.0,0.0001628,2]
[406617834,1771978036084,-152.99602988,0.00016296,2]
[406617835,1771978036106,-800.119907,0.00016319,2]
[406617836,1771978036128,-341.0,0.00016396,2]
[406617837,1771978036148,-731.24,0.00016438,2]
[406617838,1771978036170,-731.24,0.00016438,3]
[406617839,1771978036191,-731.24,0.00016438,4]
[406617840,1771978036211,-731.24,0.00016438,5]
[406617841,1771978036232,-731.24,0.00016438,6]
[406617842,1771978036252,-731.24,0.00016438,7]
[406617843,1771978036272,-731.24,0.00016438,8]
[406617844,1771978036294,-731.24,0.00016438,9]
[406617845,1771978036315,-731.24,0.00016438,10]
[406617846,1771978036335,-731.24,0.00016438,11]
[406617847,1771978036364,-731.24,0.00016438,12]
[406617848,1771978036391,-487.0,0.00016438,2]
[406617849,1771978036416,-487.0,0.00016438,2]
[406617850,1771978036438,-487.0,0.00016438,2]
[406617851,1771978036461,-487.0,0.00016438,2]
[406617852,1771978036485,-487.0,0.00016438,2]
[406617853,1771978036507,-487.0,0.00016438,2]
[406617854,1771978036530,-487.0,0.00016438,2]
[406617855,1771978036552,-487.0,0.00016438,2]
[406617856,1771978036574,-487.0,0.00016438,2]
[406617857,1771978036597,-487.0,0.00016438,2]
[406617858,1771978036619,-487.0,0.00016438,2]
[406617859,1771978036642,-487.0,0.00016438,2]
[406617860,1771978036664,-487.0,0.00016438,2]
[406617861,1771978036688,-487.0,0.00016438,2]
[406617862,1771978036712,-487.0,0.00016438,2]
[406617863,1771978036737,-487.0,0.00016438,2]
[406617864,1771978036760,-487.0,0.00016438,2]
[406617865,1771978036783,-487.0,0.00016438,2]
[406617866,1771978036806,-487.0,0.00016438,2]
[406617867,1771978036828,-487.0,0.00016438,2]
[406617868,1771978036851,-487.0,0.00016438,2]
[406617869,1771978036875,-487.0,0.00016438,2]
[406617870,1771978036899,-487.0,0.00016438,2]
[406617871,1771978036924,-487.0,0.00016438,2]
[406617872,1771978036949,-707.97,0.00016438,2]
[406617873,1771978036975,-154.737612,0.00016438,2]
[406617874,1771978036997,-500.0,0.00016481,2]
[406617875,1771978037020,-359.3899846,0.00016506,2]
[406617876,1771978037044,-720.0,0.00016656,2]
[406617877,1771978037066,-608.58671855,0.00016738,9]
[406617878,1771978037090,-544.11006338,0.00016738,9]
[406617879,1771978037113,-500.0,0.00016755,2]
[406617880,1771978037136,-800.119907,0.00016929,2]
[406617881,1771978037158,-349.5,0.00017,2]
[406617882,1771978037183,-293.0,0.000172,2]
[406617883,1771978037205,-731.24,0.00017246,13]
[406617884,1771978037228,-794.88,0.00017246,2]
[406617885,1771978037251,-608.58671855,0.00017258,13]
[406617886,1771978037273,-544.11006338,0.00017258,13]
[406617887,1771978037295,-348.0,0.00017358,2]
[406617888,1771978037316,-151.0,0.000175,2]
[406617889,1771978037337,-800.119907,0.00017539,2]
[406617890,1771978037359,-544.11006338,0.00017777,16]
[406617891,1771978037380,-608.58671855,0.00017777,16]
[406617892,1771978037402,-631.82,0.0001799,3]
[406617893,1771978037425,-3310.10693801,0.00018,2]
[406617894,1771978038305,-150.0,0.00016374,30]
[406617895,1771978038326,-150.0,0.00017374,30]
[406617896,1771978038348,-6142.51028809,0.00018,2]
[406617897,1771978038368,-731.24,0.00018227,14]
[406617898,1771978038389,-794.88,0.00018227,2]
[406617899,1771978038410,-544.11006338,0.00018296,20]
[406617900,1771978038430,-608.58671855,0.00018296,20]
[406617901,1771978038453,-864.0,0.00018321,2]
[406617902,1771978038475,-212.83,0.00018373,30]
[406617903,1771978038496,-1513.61681797,0.0001847,2]
[406617904,1771978038518,-218.243513,0.00018493,2]
[406617905,1771978038538,-500.0,0.00018768,2]
[406617906,1771978038560,-1684.74,0.00018805,3]
[406617907,1771978038582,-842.37,0.00018805,3]
[406617908,1771978038602,-608.58671855,0.00018815,24]
[406617909,1771978038623,-544.11006338,0.00018815,24]
[406617910,1771978038645,-151.0,0.00019,2]
[406617911,1771978038665,-500.0,0.00019178,30]
[406617912,1771978038686,-500.0,0.00019178,30]
[406617913,1771978038706,-500.0,0.00019178,30]
[406617914,1771978038724,-500.0,0.00019178,30]
[406617915,1771978038745,-500.0,0.00019178,30]
[406617916,1771978038765,-500.0,0.00019178,30]
[406617917,1771978038784,-500.0,0.00019178,30]
[406617918,1771978038805,-500.0,0.00019178,30]
[406617919,1771978038825,-500.0,0.00019178,30]
[406617920,1771978038845,-500.0,0.00019178,30]
[406617921,1771978038865,-500.0,0.00019178,30]
[406617922,1771978038885,-500.0,0.00019178,30]
[406617923,1771978038905,-500.0,0.00019178,30]
[406617924,1771978038929,-500.0,0.00019178,30]
[406617925,1771978038948,-500.0,0.00019178,30]
[406617926,1771978038969,-500.0,0.00019178,30]
[406617927,1771978038989,-500.0,0.00019178,30]
[406617928,1771978039012,-500.0,0.00019178,30]
[406617929,1771978039032,-500.0,0.00019178,30]
[406617930,1771978039055,-500.0,0.00019178,30]
[406617931,1771978039074,-574.9541425,0.00019178,30]
[406617932,1771978039094,-608.58671855,0.00019334,28]
[406617933,1771978039114,-544.11006338,0.00019334,28]
[406617934,1771978039135,-283.77,0.00019372,30]
[406617935,1771978039157,-561.37206748,0.00019462,2]
[406617936,1771978039179,-731.24,0.00019853,15]
[406617937,1771978039200,-794.88,0.00019853,2]
[406617938,1771978039222,-608.58671855,0.00019854,31]
[406617939,1771978039243,-544.11006338,0.00019854,31]
[406617940,1771978039263,-421.18,0.00019989,3]
[406617941,1771978039284,-500.0,0.00019999,2]
[406617942,1771978039303,-555.81217252,0.0002,120]
[406617943,1771978039321,-646.00534838,0.0002,120]
[406617944,1771978039343,-210.59,0.00020144,3]
[406617945,1771978039366,-1000.0,0.00020154,2]
[406617946,1771978039387,-3369.48,0.00020175,3]
[406617947,1771978039557,-1684.74,0.00020175,3]
[406617948,1771978039579,-153.16957801,0.00020181,5]
[406617949,1771978039601,-159.87425118,0.00020181,5]
[406617950,1771978039623,-354.72,0.00020372,30]
[406617951,1771978039646,-608.58671855,0.00020373,35]
[406617952,1771978039667,-544.11006338,0.00020373,35]
[406617953,1771978039688,-151.0,0.000205,3]
[406617954,1771978039710,-184.9411184,0.00020536,2]
[406617955,1771978039731,-739.76447362,0.00020536,2]
[406617956,1771978039753,-1664.47006564,0.00020536,2]
[406617957,1771978039776,-197.210067,0.00020548,2]
[406617958,1771978039816,-153.16957802,0.00020805,5]
[406617959,1771978039839,-544.11006338,0.00020892,39]
[406617960,1771978039862,-608.58671855,0.00020892,39]
[406617961,1771978039885,-213.356769,0.00021081,7]
[406617962,1771978039905,-1513.61681797,0.00021319,2]
[406617963,1771978039931,-842.36,0.00021359,3]
[406617964,1771978039953,-425.66,0.00021371,30]
[406617965,1771978039979,-272.56,0.00021407,2]
[406617966,1771978040003,-544.11006338,0.00021411,42]
[406617967,1771978040024,-608.58671855,0.00021411,42]
[406617968,1771978040045,-421.18,0.00021514,3]
[406617969,1771978040066,-289.9,0.000216,2]
[406617970,1771978040087,-957.34225997,0.00021611,2]
[406617971,1771978040108,-201.70288438,0.00021611,2]
[406617972,1771978040128,-806.00472597,0.00021611,2]
[406617973,1771978040149,-3829.36903989,0.00021611,2]
[406617974,1771978040170,-554.78715292,0.00021611,2]
[406617975,1771978040191,-264.55330457,0.00021839,2]
[406617976,1771978040212,-218.243513,0.00021918,2]
[406617977,1771978040233,-150.48225771,0.00021918,2]
[406617978,1771978040254,-500.0,0.00021918,2]
[406617979,1771978040276,-544.11006338,0.0002193,46]
[406617980,1771978040297,-608.58671855,0.0002193,46]
[406617981,1771978040319,-500.0,0.00021973,2]
[406617982,1771978040339,-173.24492746,0.00022,10]
[406617983,1771978040360,-151.0,0.00022,4]
[406617984,1771978040380,-291.39352074,0.00022028,2]
[406617985,1771978040407,-1000.0,0.00022169,10]
[406617986,1771978040439,-244.0,0.00022169,10]
[406617987,1771978040459,-237.19,0.000222,2]
[406617988,1771978040480,-244.79501188,0.00022433,2]
[406617989,1771978040504,-544.11006338,0.0002245,50]
[406617990,1771978040527,-608.58671855,0.0002245,50]
[406617991,1771978040550,-731.24,0.00022499,16]
[406617992,1771978040571,-500.0,0.00022499,2]
[406617993,1771978040595,-794.88,0.00022499,2]
[406617994,1771978040618,-8293.71,0.000225,2]
[406617995,1771978040642,-484.8416574,0.00022749,2]
[406617996,1771978040664,-2219.14861168,0.00022749,2]
[406617997,1771978040686,-211.86,0.000228,30]
[406617998,1771978040709,-634.89051377,0.00022901,5]
[406617999,1771978040736,-544.11006338,0.00022969,54]
[406618000,1771978040758,-608.58671855,0.00022969,54]
[406618001,1771978040782,-329.97795918,0.00022988,2]
[406618002,1771978040804,-744.3517164,0.00023,3]
[406618003,1771978040828,-337.32463361,0.00023288,2]
[406618004,1771978040852,-544.11006338,0.00023488,57]
[406618005,1771978040875,-608.58671855,0.00023488,57]
[406618006,1771978040902,-151.0,0.000235,8]
[406618007,1771978040926,-389.0315603,0.00024,2]
[406618008,1771978040951,-544.11006338,0.00024007,61]
[406618009,1771978040974,-608.58671855,0.00024007,61]
[406618010,1771978040998,-1513.61681797,0.00024167,2]
[406618011,1771978041025,-157.75354124,0.00024228,5]
[406618012,1771978041049,-1000.0,0.00024386,10]
[406618013,1771978041071,-492.0,0.00024386,10]
[406618014,1771978041092,-1329.887,0.000244,2]
[406618015,1771978041112,-544.11006338,0.00024526,65]
[406618016,1771978041133,-608.58671855,0.00024526,65]
[406618017,1771978041153,-500.0,0.00024658,2]
[406618018,1771978041176,-731.24,0.00024699,17]
[406618019,1771978041199,-794.88,0.00024699,120]
[406618020,1771978041220,-5458.94450519,0.000247,2]
[406618021,1771978041242,-500.0,0.00024713,2]
[406618022,1771978041267,-500.0,0.00024768,2]
[406618023,1771978041287,-500.0,0.00024822,2]
[406618024,1771978041306,-500.0,0.00024877,2]
[406618025,1771978041326,-731.24,0.00024899,18]
[406618026,1771978041348,-794.88,0.00024899,120]
[406618027,1771978041368,-27748.5161469,0.000249,2]
[406618028,1771978041388,-500.0,0.00024932,2]
[406618029,1771978041408,-500.0,0.00024987,2]
[406618030,1771978041429,-623.2498758,0.00025,120]
[406618031,1771978041449,-151.0,0.00025,6]
[406618032,1771978041469,-500.0,0.00025042,2]
[406618033,1771978041490,-731.24,0.00025045,19]
[406618034,1771978041510,-794.88,0.00025045,120]
[406618036,1771978041530,-544.11006338,0.00025046,69]
[406618037,1771978041549,-608.58671855,0.00025046,69]
[406618038,1771978041568,-500.0,0.00025096,2]
[406618039,1771978041588,-522.87691838,0.00025151,2]
[406618040,1771978041609,-785.94846664,0.00025168,2]
[406618041,1771978041629,-1768.38404993,0.00025168,2]
[406618042,1771978041649,-196.48711666,0.00025168,2]
[406618043,1771978041671,-3140.65007268,0.00025168,2]
[406618044,1771978041693,-367.96018642,0.00025168,2]
[406618046,1771978041833,-661.66600722,0.00025168,2]
[406618047,1771978041854,-153.07808189,0.00025168,2]
[406618048,1771978041876,-612.31232757,0.00025168,2]
[406618049,1771978041897,-5549.70322938,0.00025204,2]
[406618050,1771978041918,-693.3919763,0.00025214,2]
[406618051,1771978041943,-250.0,0.00025214,2]
[406618052,1771978041964,-250.0,0.00025214,2]
[406618053,1771978041987,-250.0,0.00025214,2]
[406618054,1771978042009,-250.0,0.00025214,2]
[406618056,1771978042030,-250.0,0.00025214,2]
[406618057,1771978042051,-250.0,0.00025214,2]
[406618058,1771978042070,-156.587,0.00025214,2]
[406618059,1771978042091,-250.0,0.00025214,2]
[406618060,1771978042112,-250.0,0.00025214,2]
[406618061,1771978042132,-250.0,0.00025214,2]
[406618062,1771978042154,-500.0,0.00025214,2]
[406618063,1771978042174,-500.0,0.00025214,2]
[406618064,1771978042194,-500.0,0.00025214,2]
[406618065,1771978042215,-500.0,0.00025214,2]
[406618066,1771978042235,-500.0,0.00025214,2]
[406618067,1771978042256,-500.0,0.00025214,2]
[406618068,1771978042276,-500.0,0.00025214,2]
[406618069,1771978042296,-500.0,0.00025214,2]
[406618070,1771978042317,-500.0,0.00025214,2]
[406618071,1771978042341,-500.0,0.00025214,2]
[406618072,1771978042361,-500.0,0.00025214,2]
[406618073,1771978042383,-500.0,0.00025214,2]
[406618074,1771978042404,-500.0,0.00025214,2]
[406618075,1771978042429,-500.0,0.00025214,2]
[406618076,1771978042451,-500.0,0.00025214,2]
[406618077,1771978042473,-500.0,0.00025214,2]